bitfinex/quotes_SOLUSD_20250422
["timestamp","ask_amount","ask_price","bid_price","bid_amount"]
[1745350742014,6.9538271,143.81,143.72,102.73703377]
[1745350742209,20.28750312,143.78,143.72,102.73703377]
[1745350742719,20.28750312,143.77,143.72,102.73703377]
[1745350742926,20.28750312,143.79,143.72,102.73703377]
[1745350743314,20.28750312,143.79,143.72,341.15703377]
[1745350745420,20.28750312,143.79,143.74,18.64964886]
[1745350745720,13.30935174,143.82,143.74,18.64964886]
[1745350745927,20.28750312,143.79,143.74,100.64964886]
[1745350746326,20.28750312,143.79,143.74,102.73672519]
[1745350746535,13.30935174,143.82,143.74,102.73672519]
[1745350746728,20.28750312,143.79,143.74,102.73672519]
[1745350747536,20.28750312,143.79,143.74,100.64964886]
[1745350747731,20.28750312,143.78,143.74,100.64964886]
[1745350749354,13.30935174,143.82,143.74,100.64964886]
[1745350749537,20.28750312,143.78,143.74,100.64964886]
[1745350750716,13.30935174,143.82,143.74,100.64964886]
[1745350750939,20.28750312,143.78,143.74,100.64964886]
[1745350751143,20.28750312,143.79,143.74,102.73670955]
[1745350751317,20.28750312,143.79,143.76,18.64964886]
[1745350751637,13.30920378,143.82,143.78,18.64964886]
[1745350752018,6.356,143.82,143.78,18.64964886]
[1745350752640,20.28750312,143.79,143.78,18.64964886]
[1745350755337,12.98657737,143.79,143.78,18.64964886]
[1745350755843,12.98657737,143.79,143.78,15.18]
[1745350757424,71.88747339,143.79,143.75,100.64964886]
[1745350757619,12.98657737,143.76,143.75,18.64964886]
[1745350759344,19.94261521,143.76,143.75,18.64964886]
[1745350759534,19.94261521,143.76,143.74,15.18]
[1745350759847,6.958458,143.71,143.64,82.0]
[1745350760049,12.98657737,143.66,143.64,97.18]
[1745350760728,12.98657737,143.66,143.65,23.15600185]
[1745350760924,6.6275,143.7,143.65,4.50635299]
[1745350761143,12.98657737,143.66,143.65,4.50635299]
[1745350761734,12.98657737,143.66,143.65,23.15600185]
[1745350763122,12.98657737,143.66,143.65,4.50635299]
[1745350763438,20.3329073,143.66,143.65,4.50635299]
[1745350764148,27.29378715,143.66,143.65,4.50635299]
[1745350764452,40.6658146,143.66,143.59,15.18]
[1745350764649,20.3329073,143.64,143.6,18.64964886]
[1745350765028,20.3329073,143.64,143.62,18.64964886]
[1745350765229,6.9599716,143.68,143.62,18.64964886]
[1745350765436,32.95957327,143.69,143.62,18.64964886]
[1745350765634,6.6275,143.7,143.62,100.64964886]
[1745350765947,13.58651432,143.7,143.62,100.64964886]
[1745350766148,20.3329073,143.66,143.62,100.64964886]
[1745350766445,20.3329073,143.65,143.62,100.64964886]
[1745350766840,13.58651432,143.7,143.62,18.64964886]
[1745350767038,20.3329073,143.63,143.62,18.64964886]
[1745350767239,20.3329073,143.64,143.62,18.64964886]
[1745350767435,13.58651432,143.7,143.62,18.64964886]
[1745350767626,20.3329073,143.64,143.62,18.64964886]
[1745350768656,20.3329073,143.63,143.62,18.64964886]
[1745350768844,20.3329073,143.64,143.62,18.64964886]
[1745350770140,20.3329073,143.63,143.62,18.64964886]
[1745350770863,20.3329073,143.63,143.61,15.18]
[1745350771172,20.3329073,143.62,143.61,33.82964886]
[1745350771940,24.35979709,143.68,143.62,18.64964886]
[1745350772174,20.3329073,143.63,143.62,18.64964886]
[1745350772349,20.3329073,143.63,143.61,15.18]
[1745350772673,24.35979709,143.68,143.61,15.18]
[1745350773046,20.3329073,143.62,143.61,15.18]
[1745350773567,20.3329073,143.62,143.58,18.64964886]
[1745350773752,20.3329073,143.64,143.54,82.0]
[1745350773753,20.3329073,143.59,143.54,100.64964886]
[1745350773957,7.8175,143.65,143.56,18.64964886]
[1745350774271,20.3329073,143.6,143.56,18.64964886]
[1745350774445,20.3329073,143.62,143.56,18.64964886]
[1745350774641,20.3329073,143.63,143.56,18.64964886]
[1745350774874,6.96039535,143.67,143.58,18.64964886]
[1745350775167,7.8175,143.69,143.58,126.64964886]
[1745350775341,20.3329073,143.66,143.59,18.64964886]
[1745350775973,20.3329073,143.65,143.58,109.2735558]
[1745350776485,20.3329073,143.63,143.59,18.64964886]
[1745350776679,20.3329073,143.64,143.6,15.82]
[1745350776965,7.8175,143.69,143.6,15.82]
[1745350776966,20.3329073,143.67,143.6,15.82]
[1745350777168,20.3329073,143.66,143.6,15.82]
[1745350777377,20.3329073,143.65,143.6,15.82]
[1745350778171,20.3329073,143.64,143.6,15.82]
[1745350778484,20.3329073,143.63,143.6,15.82]
[1745350778688,20.3329073,143.62,143.6,15.82]
[1745350778868,20.3329073,143.63,143.6,15.82]
[1745350779560,20.3329073,143.64,143.6,15.82]
[1745350779766,6.96068644,143.67,143.6,15.82]
[1745350779974,6.96068644,143.67,143.61,18.64964886]
[1745350780170,20.3329073,143.65,143.61,18.64964886]
[1745350780359,6.96068644,143.67,143.61,18.64964886]
[1745350780559,20.3329073,143.65,143.61,18.64964886]
[1745350781554,20.3329073,143.64,143.61,18.64964886]
[1745350782380,20.3329073,143.63,143.61,18.64964886]
[1745350782755,27.29479279,143.64,143.61,18.64964886]
[1745350785188,20.3329073,143.63,143.61,18.64964886]
[1745350786588,20.3329073,143.62,143.58,34.46964886]
[1745350786772,20.3329073,143.6,143.58,34.46964886]
[1745350787495,27.296696,143.6,143.58,34.46964886]
[1745350787684,6.96233377,143.63,143.58,34.46964886]
[1745350787871,20.3329073,143.61,143.58,34.46964886]
[1745350788664,20.3329073,143.59,143.58,34.46964886]
[1745350788968,20.3329073,143.59,143.54,15.85]
[1745350789271,50.36986491,143.62,143.54,15.85]
[1745350789472,20.3329073,143.56,143.54,15.85]
[1745350789787,50.36986491,143.62,143.55,18.64964886]
[1745350789980,20.3329073,143.57,143.55,18.64964886]
[1745350790292,20.3329073,143.56,143.54,15.85]
[1745350790589,85.18395765,143.62,143.54,15.85]
[1745350790590,20.3329073,143.55,143.54,34.49964886]
[1745350790968,27.29870621,143.56,143.54,34.49964886]
[1745350791889,20.3329073,143.55,143.54,15.85]
[1745350792269,6.4915,143.66,143.55,18.64964886]
[1745350792471,20.3329073,143.64,143.55,18.64964886]
[1745350792786,13.45258468,143.66,143.55,18.64964886]
[1745350792984,20.3329073,143.63,143.55,20.73942976]
[1745350793171,20.3329073,143.62,143.55,19.92347082]
[1745350793786,6.4915,143.66,143.55,48.01324279]
[1745350794087,20.3329073,143.65,143.57,18.64964886]
[1745350794296,20.3329073,143.65,143.57,19.92329337]
[1745350794674,20.3329073,143.63,143.57,19.92329337]
[1745350795066,20.3329073,143.6,143.57,19.92329337]
[1745350795277,20.3329073,143.6,143.55,18.64964886]
[1745350795695,20.3329073,143.61,143.55,18.64964886]
[1745350796283,20.3329073,143.61,143.55,20.73946254]
[1745350796482,20.3329073,143.61,143.55,18.64964886]
[1745350796986,20.3329073,143.6,143.55,18.64964886]
[1745350798305,20.3329073,143.61,143.55,18.64964886]
[1745350798501,20.3329073,143.61,143.55,20.73950932]
[1745350799177,20.3329073,143.61,143.55,18.64964886]
[1745350799494,20.3329073,143.61,143.55,20.73951004]
[1745350800593,6.96291172,143.62,143.55,18.64964886]
[1745350800796,6.96239955,143.63,143.55,18.64964886]
[1745350800995,13.45257839,143.66,143.56,18.64964886]
[1745350801299,20.3329073,143.65,143.56,142.37964886]
[1745350801505,20.3329073,143.65,143.56,143.65338209]
[1745350802172,6.4915,143.66,143.56,169.65338209]
[1745350802395,20.3329073,143.65,143.57,2.08957303]
[1745350802803,20.3329073,143.64,143.56,171.74304093]
[1745350803099,13.45240374,143.66,143.56,169.65338209]
[1745350803100,20.3329073,143.63,143.56,169.65338209]
[1745350803573,20.3329073,143.61,143.56,101.92338209]
[1745350804293,20.3329073,143.6,143.56,101.92338209]
[1745350804486,20.3329073,143.6,143.56,100.64964886]
[1745350804687,20.3329073,143.57,143.54,0.03]
[1745350804911,6.4915,143.6,143.54,0.03]
[1745350805287,20.3329073,143.56,143.54,0.03]
[1745350805606,20.3329073,143.55,143.54,0.03]
[1745350805808,20.3329073,143.55,143.54,18.67964886]
[1745350806182,20.3329073,143.55,143.54,0.03]
[1745350806695,27.29912116,143.55,143.54,0.03]
[1745350807410,6.96621386,143.55,143.54,0.03]
[1745350807612,20.3329073,143.56,143.54,18.67964886]
[1745350807981,6.96427327,143.59,143.54,18.67964886]
[1745350808209,20.3329073,143.55,143.54,18.67964886]
[1745350809096,27.29912116,143.55,143.54,0.03]
[1745350809293,6.96621386,143.55,143.54,0.03]
[1745350809514,27.29912116,143.55,143.54,0.03]
[1745350810078,6.96621386,143.55,143.54,0.03]
[1745350810290,27.29912116,143.55,143.54,0.03]
[1745350811714,6.8739,143.54,143.48,0.03]
[1745350811921,52.4752073,143.49,143.48,0.03]
[1745350812501,32.1423,143.49,143.48,0.03]
[1745350812688,52.4752073,143.49,143.48,0.03]
[1745350812883,6.1423,143.49,143.48,0.5683056]
[1745350813088,13.11142676,143.49,143.48,0.5683056]
[1745350813306,27.30203406,143.49,143.48,0.5683056]
[1745350813505,20.3329073,143.49,143.48,0.5683056]
[1745350813703,6.96815552,143.51,143.48,19.21795446]
[1745350813892,20.3329073,143.49,143.48,0.5683056]
[1745350814093,20.3329073,143.49,143.48,1e-08]
[1745350814319,24.38854434,143.51,143.42,16.18]
[1745350814487,20.3329073,143.48,143.42,16.18]
[1745350814812,20.3329073,143.48,143.43,18.64964886]
[1745350815307,20.3329073,143.5,143.43,1.6462]
[1745350815510,32.59477778,143.49,143.43,1.6462]
[1745350816093,32.59477778,143.47,143.43,1.6462]
[1745350816495,32.59477778,143.47,143.42,22.7924]
[1745350816496,32.59477778,143.45,143.42,16.18]
[1745350817209,32.59477778,143.46,143.43,18.64964886]
[1745350817414,32.59477778,143.45,143.43,18.64964886]
[1745350817716,32.59477778,143.45,143.42,16.18]
[1745350817897,32.59477778,143.45,143.43,18.64964886]
[1745350818405,6.96912676,143.49,143.43,18.64964886]
[1745350818406,32.59477778,143.46,143.43,18.64964886]
[1745350818610,6.96767001,143.52,143.43,18.64964886]
[1745350818795,6.96767001,143.52,143.43,100.64964886]
[1745350818996,32.59477778,143.49,143.43,100.64964886]
[1745350819609,6.96860273,143.51,143.43,100.64964886]
[1745350819806,6.96778978,143.52,143.43,100.64964886]
[1745350819996,32.59477778,143.5,143.43,100.64964886]
[1745350820713,32.59477778,143.49,143.43,100.64964886]
[1745350821602,32.59477778,143.49,143.43,82.0]
[1745350821916,6.96784178,143.52,143.44,18.64964886]
[1745350822096,6.96784178,143.52,143.44,100.64964886]
[1745350822097,32.59477778,143.5,143.44,100.64964886]
[1745350822295,6.96784178,143.52,143.44,100.64964886]
[1745350822503,32.59477778,143.5,143.44,100.64964886]
[1745350823121,32.59477778,143.49,143.44,100.64964886]
[1745350823822,13.10993581,143.53,143.44,100.64964886]
[1745350824127,32.59477778,143.5,143.44,100.64964886]
[1745350824327,32.59477778,143.49,143.44,100.64964886]
[1745350824618,32.59477778,143.5,143.44,100.64964886]
[1745350824826,13.10993581,143.53,143.44,100.64964886]
[1745350825008,32.59477778,143.5,143.44,100.64964886]
[1745350826120,32.59477778,143.49,143.44,100.64964886]
[1745350826420,6.96782041,143.52,143.44,100.64964886]
[1745350826597,32.59477778,143.49,143.44,100.64964886]
[1745350826997,32.59477778,143.5,143.44,100.64964886]
[1745350827199,32.59477778,143.49,143.44,100.64964886]
[1745350827617,13.10965928,143.53,143.44,102.74105381]
[1745350827815,32.59477778,143.54,143.44,102.74105381]
[1745350828323,38.84487778,143.57,143.46,18.64964886]
[1745350828525,32.59477778,143.57,143.46,100.64964886]
[1745350828711,32.59477778,143.57,143.46,101.92426995]
[1745350828912,32.59477778,143.56,143.46,101.92426995]
[1745350829217,32.59477778,143.57,143.46,101.92426995]
[1745350829616,6.96447042,143.59,143.5,18.64964886]
[1745350829815,6.96447042,143.59,143.52,18.64964886]
[1745350829816,39.5592482,143.59,143.52,18.64964886]
[1745350830337,6.96447042,143.59,143.52,18.64964886]
[1745350830529,7.7558,143.62,143.52,100.64964886]
[1745350830704,6.2501,143.62,143.52,100.64964886]
[1745350831028,32.59477778,143.61,143.52,100.64964886]
[1745350831207,13.21306047,143.62,143.52,100.64964886]
[1745350831409,32.59477778,143.6,143.52,100.64964886]
[1745350831599,6.96338006,143.61,143.53,18.64964886]
[1745350832024,32.59477778,143.59,143.53,18.64964886]
[1745350832327,32.59477778,143.59,143.53,100.64964886]
[1745350833513,32.59477778,143.6,143.53,100.64964886]
[1745350835134,6.96338006,143.61,143.53,100.64964886]
[1745350835306,6.9621403,143.64,143.53,102.73971312]
[1745350835510,32.59477778,143.63,143.53,102.73971312]
[1745350836940,32.59477778,143.63,143.53,107.96510154]
[1745350837113,32.59477778,143.63,143.53,109.239101]
[1745350837511,20.3349176,143.63,143.53,109.239101]
[1745350837722,6.3131,143.65,143.57,18.64964886]
[1745350837928,0.063,143.65,143.59,18.64964886]
[1745350838239,0.063,143.65,143.59,100.64964886]
[1745350839225,0.063,143.65,143.61,18.64964886]
[1745350839418,0.063,143.65,143.61,100.64964886]
[1745350841120,20.3979176,143.65,143.61,100.64964886]
[1745350841515,0.063,143.65,143.61,100.64964886]
[1745350843338,0.063,143.65,143.61,102.73862891]
[1745350843641,0.063,143.65,143.61,341.43862891]
[1745350846141,0.063,143.65,143.63,18.64964886]
[1745350846320,0.063,143.65,143.64,35.16964886]
[1745350846516,0.063,143.65,143.64,117.16964886]
[1745350850442,20.3979176,143.65,143.64,117.16964886]
[1745350850750,0.063,143.65,143.64,117.16964886]
[1745350850947,20.3979176,143.65,143.64,117.16964886]
[1745350851731,20.3979176,143.65,143.64,16.52]
[1745350851936,33.66848202,143.65,143.62,18.64964886]
[1745350852136,20.3349176,143.63,143.62,18.64964886]
[1745350852345,20.3349176,143.63,143.61,255.22]
[1745350852543,20.3349176,143.62,143.61,273.86964886]
[1745350852725,20.3349176,143.64,143.61,273.86964886]
[1745350852726,6.3722,143.65,143.61,273.86964886]
[1745350853027,6.3722,143.65,143.61,255.22]
[1745350853028,20.3349176,143.62,143.61,255.22]
[1745350853242,20.3349176,143.62,143.61,16.52]
[1745350854350,27.29773614,143.62,143.61,16.52]
[1745350855834,20.3349176,143.62,143.61,16.52]
[1745350856024,20.3349176,143.62,143.61,15.52]
[1745350856225,20.3349176,143.63,143.61,15.52]
[1745350856440,20.3349176,143.64,143.61,15.52]
[1745350857251,20.3349176,143.64,143.62,18.64964886]
[1745350857440,13.33367882,143.65,143.62,18.64964886]
[1745350857441,0.063,143.65,143.62,18.64964886]
[1745350859738,20.3979176,143.65,143.62,18.64964886]
[1745350860236,20.3349176,143.63,143.62,18.64964886]
[1745350860835,20.3349176,143.63,143.61,15.52]
[1745350861031,0.063,143.65,143.61,34.16964886]
[1745350861032,20.3349176,143.62,143.61,34.16964886]
[1745350861240,27.29773614,143.62,143.61,15.52]
[1745350862339,27.29773614,143.62,143.55,18.64964886]
[1745350862528,20.3349176,143.56,143.54,1.2739107]
[1745350862730,8.2347,143.61,143.55,18.64964886]
[1745350863153,6.96427327,143.59,143.54,16.52]
[1745350863927,32.58608576,143.55,143.54,16.52]
[1745350864565,32.58608576,143.55,143.54,35.16964886]
[1745350865348,6.9643758,143.59,143.54,35.16964886]
[1745350865553,32.58608576,143.57,143.54,35.16964886]
[1745350865760,32.58608576,143.58,143.55,18.64964886]
[1745350866464,32.58608576,143.57,143.55,18.64964886]
[1745350867669,32.58608576,143.56,143.55,18.64964886]
[1745350868659,0.063,143.66,143.55,44.64964886]
[1745350868842,0.063,143.66,143.56,18.64964886]
[1745350869043,32.58608576,143.64,143.56,18.64964886]
[1745350869277,32.64908576,143.66,143.56,18.64964886]
[1745350869774,32.58608576,143.63,143.56,18.64964886]
[1745350870063,32.58608576,143.63,143.56,20.73926262]
[1745350870367,32.58608576,143.64,143.56,22.01299585]
[1745350871686,0.063,143.66,143.56,22.01299585]
[1745350871969,32.64908576,143.65,143.56,22.01299585]
[1745350872271,32.58608576,143.64,143.56,260.71299585]
[1745350872477,0.063,143.65,143.56,260.71299585]
[1745350872778,32.64908576,143.65,143.56,260.71299585]
[1745350872982,32.58608576,143.64,143.56,260.71299585]
[1745350873264,32.64908576,143.65,143.56,260.71299585]
[1745350873464,0.063,143.65,143.56,347.93729231]
[1745350874052,32.64908576,143.65,143.56,347.93729231]
[1745350874872,0.063,143.65,143.56,347.93729231]
[1745350875091,0.063,143.65,143.6,18.64964886]
[1745350875261,0.063,143.65,143.62,18.64964886]
[1745350876869,32.64908576,143.65,143.62,18.64964886]
[1745350877061,0.063,143.65,143.62,18.64964886]
[1745350877273,32.64908576,143.65,143.62,18.64964886]
[1745350877775,0.063,143.65,143.62,18.64964886]
[1745350878859,32.64908576,143.65,143.62,18.64964886]
[1745350879172,32.64908576,143.65,143.62,100.64964886]
[1745350879756,32.14908576,143.65,143.62,100.64964886]
[1745350880853,0.063,143.66,143.62,100.64964886]
[1745350881475,32.64908576,143.66,143.62,100.64964886]
[1745350881676,31.07767576,143.66,143.62,100.64964886]
[1745350882054,6.95894224,143.7,143.62,100.64964886]
[1745350882273,32.58608576,143.67,143.62,100.64964886]
[1745350882886,6.6201,143.71,143.62,128.73846949]
[1745350883474,20.31507544,143.7,143.62,128.73846949]
[1745350883984,0.063,143.71,143.62,128.73846949]
[1745350884163,20.37807544,143.71,143.62,130.01167059]
[1745350884362,0.063,143.71,143.62,135.2337845]
[1745350884568,20.31507544,143.7,143.62,53.2337845]
[1745350885376,20.31507544,143.7,143.64,18.64964886]
[1745350885977,0.063,143.71,143.66,18.64964886]
[1745350886167,20.37807544,143.71,143.68,18.64964886]
[1745350886479,20.31507544,143.7,143.68,18.64964886]
[1745350886893,0.063,143.71,143.68,18.64964886]
[1745350887260,20.37807544,143.71,143.68,18.64964886]
[1745350887462,0.063,143.71,143.68,18.64964886]
[1745350887684,20.37807544,143.71,143.68,18.64964886]
[1745350888267,0.063,143.71,143.68,18.64964886]
[1745350889181,6.3981,143.75,143.68,18.64964886]
[1745350889688,20.31507544,143.73,143.68,18.64964886]
[1745350889884,20.31507544,143.72,143.68,18.64964886]
[1745350890382,20.31507544,143.73,143.68,20.73761351]
[1745350890584,20.31507544,143.73,143.68,18.64964886]
[1745350891757,0.063,143.75,143.68,22.31588812]
[1745350892456,20.31507544,143.74,143.68,48.31588812]
[1745350892863,0.063,143.75,143.68,48.31588812]
[1745350893285,20.37807544,143.75,143.68,48.31588812]
[1745350893794,20.31507544,143.74,143.68,48.31588812]
[1745350893989,20.31507544,143.72,143.68,46.22794886]
[1745350894499,20.31507544,143.73,143.68,48.31590285]
[1745350894689,20.31507544,143.74,143.68,48.31590285]
[1745350895803,20.31507544,143.73,143.68,48.31590285]
[1745350895967,20.31507544,143.74,143.68,48.31590285]
[1745350896166,20.37807544,143.75,143.68,48.31590285]
[1745350896780,0.063,143.75,143.68,48.31590285]
[1745350899789,0.063,143.75,143.68,54.80850545]
[1745350899966,0.063,143.75,143.72,18.64964886]
[1745350900171,4.8628,143.79,143.74,18.64964886]
[1745350900371,20.31507544,143.78,143.74,100.64964886]
[1745350902081,4.8628,143.79,143.74,100.64964886]
[1745350902280,20.31507544,143.77,143.74,100.64964886]
[1745350902866,20.31507544,143.78,143.74,100.64964886]
[1745350903690,25.17787544,143.79,143.74,100.64964886]
[1745350904201,7.01684969,143.81,143.78,18.64964886]
[1745350904202,0.063,143.81,143.78,18.64964886]
[1745350904382,0.063,143.81,143.79,16.18]
[1745350904871,0.063,143.81,143.8,18.64964886]
[1745350905904,0.063,143.81,143.8,20.73587973]
[1745350907576,0.063,143.81,143.8,18.64964886]
[1745350910903,20.37807544,143.81,143.8,18.64964886]
[1745350911402,20.37807544,143.81,143.79,16.18]
[1745350911703,20.31507544,143.8,143.79,16.18]
[1745350912295,27.26917836,143.8,143.79,16.18]
[1745350913596,20.31507544,143.8,143.79,16.18]
[1745350914083,27.26917836,143.8,143.79,16.18]
[1745350914491,20.31507544,143.8,143.79,16.18]
[1745350914795,27.26917836,143.8,143.79,16.18]
[1745350914981,20.31507544,143.8,143.79,16.18]
[1745350918804,20.37807544,143.81,143.79,34.82964886]
[1745350919405,0.063,143.81,143.79,34.82964886]
[1745350919794,0.063,143.81,143.8,18.64964886]
[1745350920386,0.063,143.81,143.79,16.18]
[1745350921011,0.063,143.81,143.8,18.64964886]
[1745350922315,0.063,143.81,143.8,100.64964886]
[1745350923588,0.063,143.81,143.8,102.73587973]
[1745350925207,0.063,143.81,143.8,100.64964886]
[1745350935106,0.063,143.81,143.8,102.73587973]
[1745350935303,0.063,143.81,143.8,123.60587973]
[1745350935514,0.063,143.81,143.8,102.73587973]
[1745350936020,0.063,143.81,143.8,100.64964886]
[1745350938113,0.063,143.81,143.8,102.73587973]
[1745350938414,0.063,143.81,143.8,100.64964886]
[1745350938812,0.063,143.81,143.8,102.73587973]
[1745350948108,0.063,143.85,143.84,18.64964886]
[1745350948424,0.063,143.85,143.84,100.64964886]
[1745350948623,0.063,143.85,143.84,116.60964886]
[1745350950319,0.063,143.85,143.84,118.69529958]
[1745350950503,0.063,143.85,143.84,131.66104927]
[1745350950820,0.063,143.85,143.84,157.66104927]
[1745350951422,0.063,143.85,143.84,199.39104927]
[1745350952422,0.063,143.87,143.84,199.39104927]
[1745350952627,0.063,143.87,143.86,57.61539855]
[1745350952922,0.063,143.87,143.86,126.64964886]
[1745350953130,0.063,143.87,143.86,139.61539855]
[1745350955425,0.063,143.87,143.86,141.70075931]
[1745350955624,0.063,143.87,143.86,139.61539855]
[1745350955927,0.063,143.87,143.86,100.64964886]
[1745350956510,0.063,143.87,143.86,18.64964886]
[1745350956511,13.02874969,143.87,143.86,18.64964886]
[1745350958014,0.063,143.87,143.86,18.64964886]
[1745350958618,0.063,143.87,143.84,97.96]
[1745350958619,13.02874969,143.87,143.84,97.96]
[1745350958921,7.01371939,143.87,143.85,18.64964886]
[1745350960028,12.96574969,143.86,143.85,18.64964886]
[1745350960713,13.02874969,143.87,143.85,18.64964886]
[1745350961338,12.96574969,143.86,143.85,18.64964886]
[1745350965119,0.063,143.87,143.85,18.64964886]
[1745350965326,12.96574969,143.86,143.85,18.64964886]
[1745350967134,12.96574969,143.86,143.84,15.96]
[1745350967337,12.96574969,143.85,143.84,34.60964886]
[1745350970035,19.91743547,143.85,143.84,15.96]
[1745350971339,12.96574969,143.85,143.84,15.96]
[1745350976644,71.78043423,143.85,143.84,15.96]
[1745350976846,64.82874845,143.85,143.84,15.96]
[1745350977345,12.96574969,143.85,143.84,15.96]
[1745350978437,19.91743547,143.85,143.84,15.96]
[1745350979656,71.78043423,143.85,143.84,15.96]
[1745350980160,71.78043423,143.85,143.82,18.64964886]
[1745350980461,12.96574969,143.83,143.82,18.64964886]
[1745350988470,12.96574969,143.83,143.81,18.64964886]
[1745350988471,19.91864954,143.83,143.81,18.64964886]
[1745350988657,12.96574969,143.82,143.81,18.64964886]
[1745350990264,12.96574969,143.82,143.8,15.46]
[1745350990468,12.96574969,143.81,143.8,15.46]
[1745350990850,12.96574969,143.81,143.8,34.10964886]
[1745350995171,58.81487498,143.85,143.81,18.64964886]
[1745350995372,12.96574969,143.82,143.81,18.64964886]
[1745350995673,12.96574969,143.82,143.8,15.46]
[1745350995877,12.96574969,143.81,143.8,15.46]
[1745350996077,39.43739259,143.86,143.8,15.46]
[1745350996366,12.96574969,143.83,143.8,15.46]
[1745350999666,12.96574969,143.83,143.81,18.64964886]
[1745351000373,12.96574969,143.82,143.81,18.64964886]
[1745351001057,12.96574969,143.83,143.81,18.64964886]
[1745351003478,12.96574969,143.82,143.81,18.64964886]
[1745351004076,12.96574969,143.82,143.8,97.46]
[1745351004280,12.96574969,143.81,143.8,116.10964886]
[1745351005461,12.96574969,143.81,143.8,15.46]
[1745351011582,12.96574969,143.81,143.8,34.10964886]
[1745351020294,12.96574969,143.81,143.8,15.46]
[1745351020800,19.91936904,143.81,143.8,15.46]
[1745351021017,26.0,143.79,143.78,0.03]
[1745351021304,38.96574969,143.79,143.78,0.03]
[1745351023375,45.92033623,143.79,143.78,0.03]
[1745351024972,38.96574969,143.79,143.78,0.03]
[1745351028602,26.0,143.79,143.78,0.03]
[1745351028900,12.96574969,143.79,143.78,0.03]
[1745351031182,19.92033623,143.79,143.78,0.03]
[1745351031384,121.68120136,143.79,143.74,0.03]
[1745351031606,12.96574969,143.75,143.74,0.03]
[1745351033410,19.92227142,143.75,143.74,0.03]
[1745351036588,12.96574969,143.74,143.73,0.03]
[1745351036996,26.30135539,143.74,143.72,0.03]
[1745351037320,64.82874845,143.73,143.72,0.03]
[1745351037714,12.96574969,143.73,143.72,0.03]
[1745351040220,19.92323942,143.73,143.72,0.03]
[1745351040708,12.96574969,143.73,143.72,0.03]
[1745351040914,19.92323942,143.73,143.72,0.03]
[1745351042501,12.96574969,143.73,143.72,0.03]
[1745351044216,32.95618365,143.76,143.72,0.03]
[1745351044394,26.0,143.76,143.72,0.03]
[1745351044599,12.96574969,143.73,143.72,0.03]
[1745351046118,26.0,143.76,143.72,0.03]
[1745351046618,12.96574969,143.74,143.72,0.03]
[1745351046991,12.96574969,143.74,143.73,33.20964886]
[1745351047728,12.96574969,143.74,143.73,14.56]
[1745351048510,6.95748973,143.73,143.69,0.03]
[1745351048722,12.96574969,143.7,143.69,0.03]
[1745351050411,19.92469193,143.7,143.69,0.03]
[1745351053400,12.96574969,143.72,143.69,18.67964886]
[1745351054023,12.96574969,143.73,143.69,18.67964886]
[1745351054222,12.96574969,143.72,143.69,18.67964886]
[1745351054419,12.96574969,143.7,143.69,18.67964886]
[1745351054927,32.95672551,143.75,143.69,18.67964886]
[1745351055133,12.96574969,143.72,143.69,18.67964886]
[1745351058035,26.0,143.75,143.69,18.67964886]
[1745351058217,12.96574969,143.72,143.69,18.67964886]
[1745351059129,26.0,143.75,143.69,18.67964886]
[1745351059309,12.96574969,143.73,143.69,18.67964886]
[1745351061038,26.0,143.75,143.69,20.76746585]
[1745351061335,12.96574969,143.72,143.69,18.67964886]
[1745351061529,27.6311,143.78,143.71,18.64964886]
[1745351061732,12.96574969,143.76,143.71,1.5531]
[1745351061938,12.96574969,143.75,143.71,1.5531]
[1745351062233,77.86299876,143.78,143.72,18.64964886]
[1745351062445,12.96574969,143.75,143.74,18.64964886]
[1745351064335,26.0,143.78,143.74,18.64964886]
[1745351064737,12.96574969,143.75,143.74,18.64964886]
[1745351065341,26.0,143.78,143.74,18.64964886]
[1745351065639,12.96574969,143.77,143.74,18.64964886]
[1745351065839,12.96574969,143.76,143.74,18.64964886]
[1745351066047,12.96574969,143.77,143.74,18.64964886]
[1745351067026,0.063,143.79,143.74,18.64964886]
[1745351067334,12.96574969,143.77,143.74,18.64964886]
[1745351067917,12.96574969,143.78,143.74,18.64964886]
[1745351068113,0.063,143.79,143.74,31.61539855]
[1745351068335,12.96574969,143.76,143.74,18.64964886]
[1745351068932,12.96574969,143.77,143.74,18.64964886]
[1745351073639,12.96574969,143.76,143.74,18.64964886]
[1745351073848,7.0179112,143.79,143.74,18.64964886]